{"text_format":"3","workbook":"xlsx","n_sheets":1,"sheets":["Bid Sheet"],"read":"whole","date_system":"1900"}

{"sheet":"Bid Sheet","index":0,"n_rows":40,"n_cols":10,"rows_kept":40,"merged":[[1,0,1,9],[24,0,24,9],[36,0,36,5]]}
[]
["SECTION A: TYPICAL SNOW REMOVAL LABOR, EQUIPMENT AND VEHICLES"]
["Item #","Description","Estimated # Units Needed\n(ENU)","Estimated Hours per Unit\n(EHR)","Working Hourly Rate\n(WHR)","Estimated Number of Mobilizations\n(NMB)","Mobilization/ Moving Charge [round-trip]\n(MR)","Total Cost\n[(EHR*WHR) + (NMB*MBR)] \nx ENU","Notice Required\n(Hours)","Total # Units Available"]
[1,"Laborer (without Transportation/Vehicle)",5,{"$f":"Table1[[#This Row],[Estimated Number of Mobilizations\n(NMB)]]*12*2","v":120},0,5,"N/A",{"$f":"(Table1[[#This Row],[Estimated Hours per Unit\n(EHR)]]*Table1[[#This Row],[Working Hourly Rate\n(WHR)]])*Table1[[#This Row],[Estimated '# Units Needed\n(ENU)]]","v":0}]
[2,"Laborer (with Transportation/Vehicle)",5,{"$f":"Table1[[#This Row],[Estimated Number of Mobilizations\n(NMB)]]*12*2","v":120},0,5,"N/A",{"$f":"(Table1[[#This Row],[Estimated Hours per Unit\n(EHR)]]*Table1[[#This Row],[Working Hourly Rate\n(WHR)]])*Table1[[#This Row],[Estimated '# Units Needed\n(ENU)]]","v":0}]
[3,"Walk-Behind Power Broom with Operator",5,{"$f":"Table1[[#This Row],[Estimated Number of Mobilizations\n(NMB)]]*12*2","v":120},0,5,0,{"$f":"((Table1[[#This Row],[Estimated Hours per Unit\n(EHR)]]*Table1[[#This Row],[Working Hourly Rate\n(WHR)]])+(Table1[[#This Row],[Estimated Number of Mobilizations\n(NMB)]]*Table1[[#This Row],[Mobilization/ Moving Charge '[round-trip']\n(MR)]]))*Table1[[#This Row],[Estimated '# Units Needed\n(ENU)]]","v":0}]
[4,"Walk-Behind Snow Blower with Operator",5,{"$f":"Table1[[#This Row],[Estimated Number of Mobilizations\n(NMB)]]*12*2","v":120},0,5,0,{"$f":"((Table1[[#This Row],[Estimated Hours per Unit\n(EHR)]]*Table1[[#This Row],[Working Hourly Rate\n(WHR)]])+(Table1[[#This Row],[Estimated Number of Mobilizations\n(NMB)]]*Table1[[#This Row],[Mobilization/ Moving Charge '[round-trip']\n(MR)]]))*Table1[[#This Row],[Estimated '# Units Needed\n(ENU)]]","v":0}]
[5,"Utility Work Machine with Plow and Operator",1,{"$f":"Table1[[#This Row],[Estimated Number of Mobilizations\n(NMB)]]*12*2","v":72},0,3,0,{"$f":"((Table1[[#This Row],[Estimated Hours per Unit\n(EHR)]]*Table1[[#This Row],[Working Hourly Rate\n(WHR)]])+(Table1[[#This Row],[Estimated Number of Mobilizations\n(NMB)]]*Table1[[#This Row],[Mobilization/ Moving Charge '[round-trip']\n(MR)]]))*Table1[[#This Row],[Estimated '# Units Needed\n(ENU)]]","v":0}]
[6,"Utility Work Machine with Broom and Operator",1,{"$f":"Table1[[#This Row],[Estimated Number of Mobilizations\n(NMB)]]*12*2","v":72},0,3,0,{"$f":"((Table1[[#This Row],[Estimated Hours per Unit\n(EHR)]]*Table1[[#This Row],[Working Hourly Rate\n(WHR)]])+(Table1[[#This Row],[Estimated Number of Mobilizations\n(NMB)]]*Table1[[#This Row],[Mobilization/ Moving Charge '[round-trip']\n(MR)]]))*Table1[[#This Row],[Estimated '# Units Needed\n(ENU)]]","v":0}]
[7,"Utility Work Machine with 50-gallon Liquid Anti-Icing Tank",1,{"$f":"Table1[[#This Row],[Estimated Number of Mobilizations\n(NMB)]]*12*2","v":72},0,3,0,{"$f":"((Table1[[#This Row],[Estimated Hours per Unit\n(EHR)]]*Table1[[#This Row],[Working Hourly Rate\n(WHR)]])+(Table1[[#This Row],[Estimated Number of Mobilizations\n(NMB)]]*Table1[[#This Row],[Mobilization/ Moving Charge '[round-trip']\n(MR)]]))*Table1[[#This Row],[Estimated '# Units Needed\n(ENU)]]","v":0}]
[8,"Small Truck with Plow and Operator",4,{"$f":"Table1[[#This Row],[Estimated Number of Mobilizations\n(NMB)]]*12*2","v":144},0,6,0,{"$f":"((Table1[[#This Row],[Estimated Hours per Unit\n(EHR)]]*Table1[[#This Row],[Working Hourly Rate\n(WHR)]])+(Table1[[#This Row],[Estimated Number of Mobilizations\n(NMB)]]*Table1[[#This Row],[Mobilization/ Moving Charge '[round-trip']\n(MR)]]))*Table1[[#This Row],[Estimated '# Units Needed\n(ENU)]]","v":0}]
[9,"Small Truck with Plow, Spreader and Operator",12,{"$f":"Table1[[#This Row],[Estimated Number of Mobilizations\n(NMB)]]*12*2","v":144},0,6,0,{"$f":"((Table1[[#This Row],[Estimated Hours per Unit\n(EHR)]]*Table1[[#This Row],[Working Hourly Rate\n(WHR)]])+(Table1[[#This Row],[Estimated Number of Mobilizations\n(NMB)]]*Table1[[#This Row],[Mobilization/ Moving Charge '[round-trip']\n(MR)]]))*Table1[[#This Row],[Estimated '# Units Needed\n(ENU)]]","v":0}]
[10,"Small Truck with 200-gallon Liquid Anti-Icing Tank and Operator",1,{"$f":"Table1[[#This Row],[Estimated Number of Mobilizations\n(NMB)]]*12*2","v":144},0,6,0,{"$f":"((Table1[[#This Row],[Estimated Hours per Unit\n(EHR)]]*Table1[[#This Row],[Working Hourly Rate\n(WHR)]])+(Table1[[#This Row],[Estimated Number of Mobilizations\n(NMB)]]*Table1[[#This Row],[Mobilization/ Moving Charge '[round-trip']\n(MR)]]))*Table1[[#This Row],[Estimated '# Units Needed\n(ENU)]]","v":0}]
[11,"Medium Dump Truck with Plow and Operator",1,{"$f":"Table1[[#This Row],[Estimated Number of Mobilizations\n(NMB)]]*12*2","v":144},0,6,0,{"$f":"((Table1[[#This Row],[Estimated Hours per Unit\n(EHR)]]*Table1[[#This Row],[Working Hourly Rate\n(WHR)]])+(Table1[[#This Row],[Estimated Number of Mobilizations\n(NMB)]]*Table1[[#This Row],[Mobilization/ Moving Charge '[round-trip']\n(MR)]]))*Table1[[#This Row],[Estimated '# Units Needed\n(ENU)]]","v":0}]
[12,"Medium Dump Truck with Plow, Spreader and Operator",16,{"$f":"Table1[[#This Row],[Estimated Number of Mobilizations\n(NMB)]]*12*2","v":144},0,6,0,{"$f":"((Table1[[#This Row],[Estimated Hours per Unit\n(EHR)]]*Table1[[#This Row],[Working Hourly Rate\n(WHR)]])+(Table1[[#This Row],[Estimated Number of Mobilizations\n(NMB)]]*Table1[[#This Row],[Mobilization/ Moving Charge '[round-trip']\n(MR)]]))*Table1[[#This Row],[Estimated '# Units Needed\n(ENU)]]","v":0}]
[13,"Medium Dump Truck with 750-gallon Liquid Anti-Icing Tank and Operator",1,{"$f":"Table1[[#This Row],[Estimated Number of Mobilizations\n(NMB)]]*12*2","v":144},0,6,0,{"$f":"((Table1[[#This Row],[Estimated Hours per Unit\n(EHR)]]*Table1[[#This Row],[Working Hourly Rate\n(WHR)]])+(Table1[[#This Row],[Estimated Number of Mobilizations\n(NMB)]]*Table1[[#This Row],[Mobilization/ Moving Charge '[round-trip']\n(MR)]]))*Table1[[#This Row],[Estimated '# Units Needed\n(ENU)]]","v":0}]
[14,"Tandem or Multi-axle Dump Truck with Plow and Operator",1,{"$f":"Table1[[#This Row],[Estimated Number of Mobilizations\n(NMB)]]*12*2","v":144},0,6,0,{"$f":"((Table1[[#This Row],[Estimated Hours per Unit\n(EHR)]]*Table1[[#This Row],[Working Hourly Rate\n(WHR)]])+(Table1[[#This Row],[Estimated Number of Mobilizations\n(NMB)]]*Table1[[#This Row],[Mobilization/ Moving Charge '[round-trip']\n(MR)]]))*Table1[[#This Row],[Estimated '# Units Needed\n(ENU)]]","v":0}]
[15,"Tandem or Multi-axle Dump Truck with Plow, Spreader and Operator",16,{"$f":"Table1[[#This Row],[Estimated Number of Mobilizations\n(NMB)]]*12*2","v":144},0,6,0,{"$f":"((Table1[[#This Row],[Estimated Hours per Unit\n(EHR)]]*Table1[[#This Row],[Working Hourly Rate\n(WHR)]])+(Table1[[#This Row],[Estimated Number of Mobilizations\n(NMB)]]*Table1[[#This Row],[Mobilization/ Moving Charge '[round-trip']\n(MR)]]))*Table1[[#This Row],[Estimated '# Units Needed\n(ENU)]]","v":0}]
[16,"Tandem or Multi-axle Dump Truck with 1,250-gallon Liquid Anti-Icing Tank and Operator",1,{"$f":"Table1[[#This Row],[Estimated Number of Mobilizations\n(NMB)]]*12*2","v":144},0,6,0,{"$f":"((Table1[[#This Row],[Estimated Hours per Unit\n(EHR)]]*Table1[[#This Row],[Working Hourly Rate\n(WHR)]])+(Table1[[#This Row],[Estimated Number of Mobilizations\n(NMB)]]*Table1[[#This Row],[Mobilization/ Moving Charge '[round-trip']\n(MR)]]))*Table1[[#This Row],[Estimated '# Units Needed\n(ENU)]]","v":0}]
[17,"Supervisor",1,{"$f":"Table1[[#This Row],[Estimated Number of Mobilizations\n(NMB)]]*12*2","v":144},0,6,"N/A",{"$f":"(Table1[[#This Row],[Estimated Hours per Unit\n(EHR)]]*Table1[[#This Row],[Working Hourly Rate\n(WHR)]])*Table1[[#This Row],[Estimated '# Units Needed\n(ENU)]]","v":0}]
[]
[null,"Denotes fields that can be filled out"]
["Bidders should mark “No Bid” or “N/A” on the non-applicable line items on the bid form(s) for any line items they are not providing a bid. "]
[]
["SECTION B: SNOW REMOVAL EQUIPMENT AND VEHICLES USED DURING LARGE/EXTREME SNOW EVENTS, TYPICALLY 6\"-8\" OR MORE"]
["Item #","Description","Estimated # Units Needed\n(ENU)","Estimated Hours per Unit\n(EHR)","Working Hourly Rate\n(WHR)","Estimated Number of Mobilizations\n(NMB)","Mobilization/ Moving Charge [round-trip]\n(MR)","Total Cost\n[(EHR*WHR) + (NMB*MBR)] \nx ENU","Notice Required\n(Hours)","Total # Units Available"]
[18,"Skid Steer (Rubber Tire) Loader with Bucket and Operator",30,{"$f":"Table2[[#This Row],[Estimated Number of Mobilizations\n(NMB)]]*6*12","v":144},0,2,0,{"$f":"((Table2[[#This Row],[Estimated Hours per Unit\n(EHR)]]*Table2[[#This Row],[Working Hourly Rate\n(WHR)]])+(Table2[[#This Row],[Estimated Number of Mobilizations\n(NMB)]]*Table2[[#This Row],[Mobilization/ Moving Charge '[round-trip']\n(MR)]]))*Table2[[#This Row],[Estimated '# Units Needed\n(ENU)]]","v":0}]
[19,"Skid Steer (Rubber Tire) Loader with Plow or Broom and Operator",1,{"$f":"Table2[[#This Row],[Estimated Number of Mobilizations\n(NMB)]]*6*12","v":144},0,2,0,{"$f":"((Table2[[#This Row],[Estimated Hours per Unit\n(EHR)]]*Table2[[#This Row],[Working Hourly Rate\n(WHR)]])+(Table2[[#This Row],[Estimated Number of Mobilizations\n(NMB)]]*Table2[[#This Row],[Mobilization/ Moving Charge '[round-trip']\n(MR)]]))*Table2[[#This Row],[Estimated '# Units Needed\n(ENU)]]","v":0}]
[20,"Rubber Tire Loader with Bucket and Operator:",15,{"$f":"Table2[[#This Row],[Estimated Number of Mobilizations\n(NMB)]]*6*12","v":144},0,2,0,{"$f":"((Table2[[#This Row],[Estimated Hours per Unit\n(EHR)]]*Table2[[#This Row],[Working Hourly Rate\n(WHR)]])+(Table2[[#This Row],[Estimated Number of Mobilizations\n(NMB)]]*Table2[[#This Row],[Mobilization/ Moving Charge '[round-trip']\n(MR)]]))*Table2[[#This Row],[Estimated '# Units Needed\n(ENU)]]","v":0}]
[21,"Rubber Tire Loader with Plow and Operator",1,{"$f":"Table2[[#This Row],[Estimated Number of Mobilizations\n(NMB)]]*6*12","v":144},0,2,0,{"$f":"((Table2[[#This Row],[Estimated Hours per Unit\n(EHR)]]*Table2[[#This Row],[Working Hourly Rate\n(WHR)]])+(Table2[[#This Row],[Estimated Number of Mobilizations\n(NMB)]]*Table2[[#This Row],[Mobilization/ Moving Charge '[round-trip']\n(MR)]]))*Table2[[#This Row],[Estimated '# Units Needed\n(ENU)]]","v":0}]
[22,"Backhoe with Bucket and Operator",10,{"$f":"Table2[[#This Row],[Estimated Number of Mobilizations\n(NMB)]]*6*12","v":144},0,2,0,{"$f":"((Table2[[#This Row],[Estimated Hours per Unit\n(EHR)]]*Table2[[#This Row],[Working Hourly Rate\n(WHR)]])+(Table2[[#This Row],[Estimated Number of Mobilizations\n(NMB)]]*Table2[[#This Row],[Mobilization/ Moving Charge '[round-trip']\n(MR)]]))*Table2[[#This Row],[Estimated '# Units Needed\n(ENU)]]","v":0}]
[23,"Backhoe with Plow/Broom and Operator",1,{"$f":"Table2[[#This Row],[Estimated Number of Mobilizations\n(NMB)]]*6*12","v":144},0,2,0,{"$f":"((Table2[[#This Row],[Estimated Hours per Unit\n(EHR)]]*Table2[[#This Row],[Working Hourly Rate\n(WHR)]])+(Table2[[#This Row],[Estimated Number of Mobilizations\n(NMB)]]*Table2[[#This Row],[Mobilization/ Moving Charge '[round-trip']\n(MR)]]))*Table2[[#This Row],[Estimated '# Units Needed\n(ENU)]]","v":0}]
[24,"Tandem or Multi-axle Dump Truck with Operator",50,{"$f":"Table2[[#This Row],[Estimated Number of Mobilizations\n(NMB)]]*6*12","v":144},0,2,0,{"$f":"((Table2[[#This Row],[Estimated Hours per Unit\n(EHR)]]*Table2[[#This Row],[Working Hourly Rate\n(WHR)]])+(Table2[[#This Row],[Estimated Number of Mobilizations\n(NMB)]]*Table2[[#This Row],[Mobilization/ Moving Charge '[round-trip']\n(MR)]]))*Table2[[#This Row],[Estimated '# Units Needed\n(ENU)]]","v":0}]
[25,"Snow Melter with Operator",1,{"$f":"Table2[[#This Row],[Estimated Number of Mobilizations\n(NMB)]]*6*12","v":144},0,2,0,{"$f":"((Table2[[#This Row],[Estimated Hours per Unit\n(EHR)]]*Table2[[#This Row],[Working Hourly Rate\n(WHR)]])+(Table2[[#This Row],[Estimated Number of Mobilizations\n(NMB)]]*Table2[[#This Row],[Mobilization/ Moving Charge '[round-trip']\n(MR)]]))*Table2[[#This Row],[Estimated '# Units Needed\n(ENU)]]","v":0}]
["*","Supervisor rate to be entered in line item 18 in Bid Sheet A","N/A","N/A","N/A","N/A","N/A","N/A"]
[]
["Section C: CATALOG PERCENTAGE DISCOUNT OFF OF THE LIST PRICES FOR RENTAL OF OTHER EQUIPMENT, NOT LISTED ON THE BID FORM: BIDDER MUST ENTER A PERCENT DISCOUNT, IF NONE, ENTER 0%.",{"$nulls":5},"X%"]
[]
[null,"Denotes fields that can be filled out"]
["Bidders should mark “No Bid” or “N/A” on the non-applicable line items on the bid form(s) for any line items they are not providing a bid. "]